Cogmind - Beta 13 @@@ ROGUE MODE // 2024.04.27 @ 19:04:38 Player: Zaros426 Result: Destroyed by as-22722 with Assembled Rifle Performance ------------- Evolutions (0) 0 Regions Visited (4) 800 Robots Destroyed (46) 230 Value Destroyed (857) 857 Prototype IDs (27) 540 Alien Tech Used (0) 0 Bonus (427) 427 TOTAL SCORE: 2854 Bonus ------- Follower Combat Kills 127 Aligned with FarCom 300 Cogmind --------- Core Integrity 0/250 Matter 287/300 Energy 121/125 System Corruption 0% Temperature Cool (2) Movement Walking (120) Location -9/Mines Parts ------- > --- POWER (1) -------- Light Ion Engine > --- PROPULSION (2) --- Improved Aluminum Leg Improved Aluminum Leg > --- UTILITY (2) ------ Large Storage Unit Signal Interpreter > --- WEAPON (2) ------- (None) > --- INVENTORY (15) --- Light Treads Light Treads Improved Heat Sink Superbattery (1500) Improved Terrain Scanner Seismic Detector Light Armor Plating Particle Cannon Grenade Launcher Grenade Launcher Rocket Launcher Mace Mace Makeshift Hammer Peak State ------------ > --- POWER ------------ Light Nuclear Core > --- PROPULSION ------- Improved Aluminum Leg Improved Aluminum Leg > --- UTILITY ---------- Large Storage Unit Signal Interpreter > --- WEAPON ----------- Assault Rifle Assault Rifle > --- INVENTORY -------- Light Ion Engine Light Treads Light Treads Improved Heat Sink Superbattery Improved Terrain Scanner Seismic Detector Light Armor Plating Particle Cannon Grenade Launcher Grenade Launcher Rocket Launcher Mace Mace Makeshift Hammer [Rating: 14] Favorites ----------- Power Light Ion Engine Engine Light Ion Engine Power Core Light Nuclear Core Propulsion Light Treads Treads Light Treads Leg Improved Aluminum Leg Utility Signal Interpreter Device Shield Generator Storage Medium Storage Unit Processor Signal Interpreter Protection Light Armor Plating Weapon Mace Ballistic Gun Assault Rifle Impact Weapon Mace Build | -11 -10 -10 -10 -9 ------- Run | Yrd Mat Min Exi Min Slots Evolved . | . . . . . Power . | . . . . . Propulsion . | . . . . . Utility . | . . . . . Weapon . | . . . . . Parts Attached 29 | 8 11 3 1 6 Power 6 | 1 1 2 . 2 Engine 5 | 1 1 2 . 1 Core 1 | . . . . 1 Reactor . | . . . . . Propulsion 8 | 2 4 . . 2 Treads 4 | 2 2 . . . Leg 4 | . 2 . . 2 Wheel . | . . . . . Hover . | . . . . . Flight . | . . . . . Utility 8 | 3 4 . 1 . Device 3 | 2 1 . . . Storage 3 | 1 1 . 1 . Processor 1 | . 1 . . . Hackware . | . . . . . Protection 1 | . 1 . . . Artifact . | . . . . . Weapon 7 | 2 2 1 . 2 Energy Gun . | . . . . . Energy Cannon . | . . . . . Ballistic Gun 4 | 2 . . . 2 Ballistic Cannon . | . . . . . Launcher . | . . . . . Special Weapon . | . . . . . Impact Weapon 3 | . 2 1 . . Slashing Weapon . | . . . . . Piercing Weapon . | . . . . . Special Melee Weapon . | . . . . . Unidentified Prototypes . | . . . . . Parts Lost 6 | . 1 2 . 3 Power 3 | . . 2 . 1 Propulsion . | . . . . . Utility 1 | . 1 . . . Weapon 2 | . . . . 2 Highest Loss Streak 3 | . 1 1 . 3 To Critical Strikes . | . . . . . Average Slot Usage (%) 97 | . 100 93 100 99 Engine 10 | . 14 8 14 3 Core 1 | . . . . 10 Treads 20 | . 2 28 28 24 Leg 7 | . 25 . . 3 Device 3 | . 12 . . . Storage 14 | . 14 14 14 14 Processor 10 | . 1 14 14 14 Ballistic Gun 3 | . . . . 22 Impact Weapon 24 | . 27 28 28 4 Naked Turns . | . . . . . Heaviest Build 29 | 13 22 19 28 29 Greatest Support 40 | 40 40 40 40 40 Greatest Overweight (x) 1 | . . . . 1 Average Overweight (x) . | . . . . . Largest Inventory Capacity 15 | 8 10 10 15 15 Average Capacity 10 | 5 9 10 14 15 Most Carried 15 | 2 10 10 11 15 Average Carried 9 | . 8 9 10 13 Final Capacity 15 | 8 10 10 15 15 Final Carried 14 | 1 9 10 11 14 Class Distribution -------------------- 100% | Mutant Dominant Class ---------------- Mutant | -10/Materials Mutant | -10/Mines Mutant | -10/Exiles Mutant | -9/Mines Resources | -11 -10 -10 -10 -9 ----------- Run | Yrd Mat Min Exi Min Matter Collected 502 | 312 120 30 . 40 Remotely . | . . . . . Salvage Created 1311 | 140 649 522 . . Parts 34 | 9 15 10 . . Haulers Intercepted 2 | . 2 . . . Recyclers Shooed . | . . . . . Parts Field Recycled . | . . . . . Retrieved Matter . | . . . . . Parts Self-Destructed . | . . . . . Prevented . | . . . . . Kills | -11 -10 -10 -10 -9 ------- Run | Yrd Mat Min Exi Min Combat Hostiles Destroyed 23 | . 15 8 . . Melee 11 | . 9 2 . . Classes Destroyed 8 | 1 5 2 . . Worker 7 | . 1 6 . . Builder 2 | . . 2 . . Tunneler 7 | 6 1 . . . Hauler 2 | . 2 . . . Recycler 2 | . . 2 . . Watcher 3 | . 3 . . . Swarmer 5 | . 3 2 . . Grunt 18 | . 12 6 . . Best Kill Streak 4 | 2 4 3 . . Combat Bots Only 4 | . 4 2 . . Max Kills in Single Turn 1 | 1 1 1 . . Gunslinging . | . . . . . Exploded . | . . . . . Melee 1 | . 1 1 . . Uniques/NPCs Destroyed . | . . . . . Combat | -11 -10 -10 -10 -9 -------- Run | Yrd Mat Min Exi Min Hostile Shots Fired 198 | . 71 52 . 75 Missed 63 | . 22 13 . 28 Damage Taken 1487 | . 362 502 . 623 Core 254 | . 72 69 . 113 Absorbed by Shields 138 | . 138 . . . Core Remaining (%) 100 | 100 . . . . Volleys Fired 21 | 21 . . . . Largest 2 | 2 . . . . Hottest 40 | 40 . . . . Shots Fired 42 | 42 . . . . Gun 42 | 42 . . . . Cannon . | . . . . . Launcher . | . . . . . Special . | . . . . . Kinetic 42 | 42 . . . . Thermal . | . . . . . Explosive . | . . . . . Electromagnetic . | . . . . . Robot Hit Streak 19 | 19 . . . . Robot Miss Streak 2 | 2 . . . . Penetration Max . | . . . . . Secondary Targets . | . . . . . Shots Hit Robots 113 | 33 46 34 . . Core Hits 28 | 12 9 7 . . Critical Kills 7 | 1 3 3 . . Critical Parts Destroyed 15 | . 9 6 . . Critical Strikes 22 | 1 12 9 . . Destroy 1 | 1 . . . . Smash 21 | . 12 9 . . Melee Attacks 105 | . 61 44 . . Impact 105 | . 61 44 . . Slashing . | . . . . . Piercing . | . . . . . Sneak Attacks 15 | . 4 11 . . Combat Hostiles . | . . . . . Follow-up Attacks 9 | . 4 5 . . Damage Inflicted 3935 | 266 1640 2023 . 6 Guns 266 | 266 . . . . Cannons . | . . . . . Explosions . | . . . . . Melee 3663 | . 1640 2023 . . Ramming 6 | . . . . 6 Kinetic 266 | 266 . . . . Thermal . | . . . . . Explosive . | . . . . . Electromagnetic . | . . . . . Impact 3663 | . 1640 2023 . . Slashing . | . . . . . Piercing . | . . . . . Highest Corruption . | . . . . . Average Corruption . | . . . . . Corruption Purged . | . . . . . Corruption Blocked . | . . . . . Overload Shots . | . . . . . Overflow Damage 1159 | . 423 736 . . Projectiles . | . . . . . Explosions . | . . . . . Melee 1159 | . 423 736 . . Knockbacks 12 | . 8 4 . . Impact 12 | . 8 4 . . Kinetic . | . . . . . Secondary . | . . . . . Self-Inflicted Damage . | . . . . . Shots . | . . . . . Rammed . | . . . . . Targets Rammed 1 | . . . . 1 Kicked 1 | . . . . 1 Crushed . | . . . . . Highest Temperature 6 | . . . . 6 Average Temperature 3 | . . . . 3 Received Heat Transfer 584 | . 146 258 . 180 Siege Activations . | . . . . . Robots Corrupted . | . . . . . Combat Hostiles . | . . . . . Parts Fried 27 | . 14 13 . . Impact Corruptions 48 | . 23 25 . . Robots Melted . | . . . . . Combat Hostiles . | . . . . . Parts Melted . | . . . . . Heat Transferred . | . . . . . Parts Sabotaged . | . . . . . Parts Stolen . | . . . . . Parts Stripped . | . . . . . Power Chain Reactions . | . . . . . Alert | -11 -10 -10 -10 -9 ------- Run | Yrd Mat Min Exi Min Peak Influence 279 | 30 279 201 . 94 Initial 80 | . 19 80 . . Average 84 | 16 143 74 . 32 Maximum Alert Level 1 | . 1 1 . . Low Security (%) 89 | 100 71 98 . 100 Level 1 10 | . 28 1 . . Level 2 . | . . . . . Level 3 . | . . . . . Level 4 . | . . . . . Level 5 . | . . . . . High Security . | . . . . . Max Security . | . . . . . Squads Dispatched 3 | . 3 . . . Investigation 3 | . 3 . . . Extermination . | . . . . . Reinforcement . | . . . . . Assault . | . . . . . Garrison . | . . . . . Intercept . | . . . . . Searches Triggered . | . . . . . Construction Impeded . | . . . . . Haulers Reinforced . | . . . . . Active Scanning Responses . | . . . . . Cargo Convoy Interrupts . | . . . . . Stealth | -11 -10 -10 -10 -9 --------- Run | Yrd Mat Min Exi Min Distress Signals 1 | . 1 . . . Communications Jammed . | . . . . . Distress Signals . | . . . . . Times Spotted 51 | . 22 10 . 19 Peak Tracking Total 17 | . 4 3 . 17 Tactical Retreats 3 | . . 1 . 2 Traps | -11 -10 -10 -10 -9 ------- Run | Yrd Mat Min Exi Min Traps Triggered 1 | . 1 . . . Indirectly . | . . . . . Trap Hack Attempts . | . . . . . Triggered . | . . . . . Disarmed . | . . . . . Reprogrammed . | . . . . . Reused . | . . . . . Traps Extracted . | . . . . . Installed . | . . . . . Triggered . | . . . . . Machines | -11 -10 -10 -10 -9 ---------- Run | Yrd Mat Min Exi Min Machines Disabled . | . . . . . Max in Single Turn . | . . . . . Machines Repaired . | . . . . . Machines Dismantled . | . . . . . Machines Sabotaged . | . . . . . Overloaded Fab Kills . | . . . . . Hacking | -11 -10 -10 -10 -9 --------- Run | Yrd Mat Min Exi Min Machines Accessed 12 | . 9 1 2 . Terminals 8 | . 7 1 . . Fabricators . | . . . . . Repair Stations . | . . . . . Recycling Units 2 | . 2 . . . Scanalyzers . | . . . . . Garrison Access . | . . . . . Total Hacks 58 | . 29 5 24 . Successful 42 | . 15 3 24 . Failed 15 | . 13 2 . . Catastrophic 2 | . 2 . . . Database Lockouts 1 | . 1 . . . Manual 21 | . 15 5 1 . Terminals 31 | . 26 5 . . Fabricators . | . . . . . Repair Stations . | . . . . . Recycling Units 3 | . 3 . . . Scanalyzers . | . . . . . Garrison Access . | . . . . . Terminal Hacks 37 | . 11 2 24 . Record 23 | . . . 23 . Robot Analysis 4 | . 2 2 . . Prototype ID Bank 3 | . 3 . . . Alert Level 2 | . 2 . . . Transport Status 1 | . 1 . . . Zone Layout 3 | . 3 . . . Derelict Proto ID Bank 1 | . . . 1 . Fabricator Hacks . | . . . . . Repair Station Hacks . | . . . . . Recycling Unit Hacks . | . . . . . Scanalyzer . | . . . . . Garrison Access Hacks . | . . . . . Unauthorized Hacks 5 | . 4 1 . . Terminals 3 | . 2 1 . . Botnet 3 | . 2 1 . . Fabricators . | . . . . . Repair Stations . | . . . . . Recycling Units 2 | . 2 . . . Tunnel 2 | . 2 . . . Scanalyzers . | . . . . . Garrison Access . | . . . . . Data Cores Recovered . | . . . . . Used . | . . . . . Hacking Detections 9 | . 8 1 . . Full Trace Events 4 | . 4 . . . Feedback Events . | . . . . . Feedback Blocked . | . . . . . Robot Schematics Acquired . | . . . . . Robots Built . | . . . . . Authchips . | . . . . . Time . | . . . . . Total Robot Build Rating . | . . . . . Part Schematics Acquired . | . . . . . Parts Built . | . . . . . Authchips . | . . . . . Time . | . . . . . Total Part Build Rating . | . . . . . Parts Repaired . | . . . . . Time . | . . . . . Parts Recycled . | . . . . . Recycled Matter . | . . . . . Retrieved Matter . | . . . . . Retrieved Components . | . . . . . Parts Scanalyzed . | . . . . . Part Schematics Acquired . | . . . . . Parts Damaged . | . . . . . Bothacking | -11 -10 -10 -10 -9 ------------ Run | Yrd Mat Min Exi Min Used RIF Installer . | . . . . . Robots Hacked . | . . . . . Non-combat . | . . . . . Combat . | . . . . . Robot Hacks Applied . | . . . . . Relay Couplers Released . | . . . . . Fabnet Peak Effective % . | . . . . . Robots Rewired . | . . . . . Allies Hacked . | . . . . . Hacks Repelled . | . . . . . Allies | -11 -10 -10 -10 -9 -------- Run | Yrd Mat Min Exi Min Total Allies 3 | . . 3 . . Largest Group 3 | . . 3 3 3 Highest-Rated Group 40 | . . 40 40 40 Highest-Rated Ally 16 | . . 16 16 16 Total Orders . | . . . . . Ally Attacks 24 | . . 1 . 23 Total Damage 309 | . . 18 . 291 Kills 5 | . . 1 . 4 Allies Corrupted . | . . . . . Allies Melted . | . . . . . Intel | -11 -10 -10 -10 -9 ------- Run | Yrd Mat Min Exi Min Robot Analysis Total 4 | . 2 2 . . Derelict Logs Recovered 2 | . . 1 . 1 Drone Launches . | . . . . . Drone Recoveries . | . . . . . Exploration | -11 -10 -10 -10 -9 ------------- Run | Yrd Mat Min Exi Min Turns Passed 4394 | 347 1172 1283 992 600 Spaces Moved 2624 | 177 741 728 619 359 Core 4 | 4 . . . . Treads 1908 | 173 69 728 619 319 Legs 712 | . 672 . . 40 Wheels . | . . . . . Hover . | . . . . . Flight . | . . . . . Fastest Speed 50 | 50 120 160 160 120 Average Speed 149 | 157 123 160 160 160 Slowest Speed 190 | 160 160 160 160 190 Overloaded Moves . | . . . . . Propulsion Burnouts . | . . . . . Robots Hopped . | . . . . . Cave-ins Triggered . | . . . . . Exploration Rate (%) 69 | 8 85 98 93 63 Regions Visited 4 Branch Regions 3 Pre-discovered Areas 3 | . 2 . 1 . Known Exits Taken 3 | . 1 1 1 . Unknown Exits Taken 1 | 1 . . . . Scrap Searched 3 | . . 2 . 1 Spaces Dug 3 | . . 3 . . Terrain Destroyed 3 | . . 3 . . Melee 3 | . . 3 . . Projectile . | . . . . . AOE . | . . . . . Terrain Rammed . | . . . . . Walls Destroyed . | . . . . . Machines Disabled . | . . . . . Actions | -11 -10 -10 -10 -9 --------- Run | Yrd Mat Min Exi Min Total 2907 | 209 899 796 621 382 Wait 114 | . 76 27 . 11 Move 2620 | 176 740 727 618 359 Hop . | . . . . . Pick Up 22 | 3 13 1 1 4 Fast Attach 8 | 6 . 2 . . Attach 4 | 2 1 . . 1 Detach . | . . . . . Swap 17 | . 10 1 1 5 Drop 9 | 1 6 . 1 1 Fire 21 | 21 . . . . Melee 91 | . 53 38 . . Ram . | . . . . . Kick 1 | . . . . 1 Crush . | . . . . . Escape Stasis . | . . . . . Rewire . | . . . . . Trap . | . . . . . Miscellaneous . | . . . . . Route ------- -11/Scrapyard -10/Materials (discovered 4 exits: *Mat x2 / *Min x2) -10/Mines (discovered 3 exits: *Mat x2 / *Exi) -10/Exiles (discovered 2 exits: *Min x2) -9/Mines (discovered 1 exit: *Mat) History --------- Turn | Location | Event 2 | -11/Scrapyard | Met Revision 17 49 | -11/Scrapyard | Discovered new exit (range 14) 348 | -11/Scrapyard | Entered Materials 349 | -10/Materials | Build established: Mutant 546 | -10/Materials | Discovered new exit (range 7) 708 | -10/Materials | Central database locked down 708 | -10/Materials | Discovered new exit (range 17) 847 | -10/Materials | Discovered new exit (range 18) 1165 | -10/Materials | Discovered new exit (range 14) 1418 | -10/Materials | Identified exit to Mines 1520 | -10/Materials | Entered Mines 1554 | -10/Mines | Learned 4 Materials zone layouts 1789 | -10/Mines | A weapon hastily lodged in a ceiling crevice suddenly fell to the ground 2149 | -10/Mines | Deemed a non-threat by the Exiles lab entrance 2149 | -10/Mines | Discovered new exit (range 5) 2154 | -10/Mines | Identified exit to Exiles 2194 | -10/Mines | Discovered new exit (range 16) 2216 | -10/Mines | Identified exit to Materials 2221 | -10/Mines | Assisted by bots powering up and referring to "LRC-V3" 2307 | -10/Mines | Discovered exit to Materials (range 7) 2511 | -10/Mines | Core integrity fell below 50% 2803 | -10/Mines | Entered Exiles 2803 | -10/Exiles | Accompanied by 3 allies 2831 | -10/Exiles | Discovered new exit (range 15) 2853 | -10/Exiles | Identified exit to Mines 2887 | -10/Exiles | Met 8R-AWN 2912 | -10/Exiles | Met EX-HEX 3013 | -10/Exiles | Met EX-DEC 3038 | -10/Exiles | Visited The Gauntlet 3263 | -10/Exiles | Learned location of Zion (-6) 3331 | -10/Exiles | Discovered exit to Mines (range 15) 3463 | -10/Exiles | Met EX-BIN 3554 | -10/Exiles | Aligned with FarCom system 3555 | -10/Exiles | Given EX-Vault access code 3592 | -10/Exiles | Opened EX-Vault 3603 | -10/Exiles | Found Superbattery 3638 | -10/Exiles | Warned to stay clear of 0b10 Research branches 3658 | -10/Exiles | Exiles lab attacked by MAIN.C 3795 | -10/Exiles | Left Exiles lab with Superbattery 3795 | -10/Exiles | Entered Mines 3795 | -9/Mines | Accompanied by 3 allies 3869 | -9/Mines | Learned location of 1 exit from Materials 4016 | -9/Mines | Discovered new exit (range 11) 4031 | -9/Mines | Identified exit to Materials 4058 | -9/Mines | Received a Rocket Launcher from a helpful Derelict 4293 | -9/Mines | Assembled infested the area 4339 | -9/Mines | Lost 3 allies 4375 | -9/Mines | Core integrity fell below 20% 4395 | -9/Mines | Destroyed by as-22722 with Assembled Rifle Last Messages --------------- 04053_ KW-2ZX(g): "Some of my friends down here think you need a mining laser when you travel the depths." 04054_ KW-2ZX(g): "You know what I say? NO!" 04055_ KW-2ZX(g): "Everyone knows a good old rocket launcher goes a long way." 04056_ KW-2ZX(g): "Need to get rid of a swarm? Done. Need a big hole in the wall? Done." 04057_ KW-2ZX(g): "Need a small hole in the wall? Leave that to the mining laser wimps, I say!" 04058_ KW-2ZX(g): "Would you like a rocket launcher? I know I would if I were you, so I'm going to lend you mine." 04058_ KW-2ZX(g) slips back into the shadows. 04059_ Acquired Rocket Launcher. 04149_ K-01 Serf collects debris. 04161_ K-01 Serf cleans the Pressure Siphon. 04274_ T-07 Excavator is excavating. 04293_ ALERT: Infestation in the mines, dispatching Demolisher response squad. 04300_ Trooper 1b destroyed. 04353_ K-01 Serf cleans the Matter Pump. 04362_ as-94959 sneak attacks. 04367_ Assault Rifle destroyed. 04368_ K-01 Serf destroyed. 04373_ Kicked T-07 Excavator. 04373_ Lgt. Nuclear Core destroyed. 04393_ Assault Rifle destroyed. Map ----- +----------------------------------------------------+ | | | | | | | | | | | | | | | | | | | | | | | | | | | ?????????????????????????????????????????????????? | | ?????????????????????????????????????????????????? | | ?????????????????????????????????????????????????? | | ####????????????????????#######??????????????????? | | #????????????????????# #??????????????????? | | # #????????????????????# < #??????????????????? | | # #????????????????????# #??????????????????? | | # ###??????????????????# k #??????????????????? | | # ####???????????????# u #??#####???????????? | | # ##??????????????# t #?## ##??????????? | | ## #???###????????# #####?# #??????????? | | ?# #?## ##???????# #?????# #??????????? | | ?# ##?# ##??????#@#????## ##??????????? | | ?# #??# #??????# #???## ###???????????? | | ?# % #### #??????# #??## ##?????????????? | | ?+ ## #?????### #?## ##??????????????? | | ?+ % #??????## ### ####????????????? | | ?# ##????### ## ????????????? | | ?# ####### ##? ????????????? | | ?### ##?# #????????????? | | ???# # ##??# #????????????? | | ???# ###### ## ##???# #????????????? | | ???# ##????# ##aa##????# #????????????? | | ??## ## ##?????# ## #?????# ##???????????? | | ??# ### #????### ##aa#?##### ##??????????? | | ??# #?#% #????# ## a### ## ##?????????" | | ### ### #????# ## a## ##???????"? | | ###??# ####a # % #?????? ?? | | ### #??# #??# # = ##???? #?? | | ### #?# #??# #### ## #??? #?? | | ?## # #?### #??# #### ##?# #?? | | ## ## #???# #??# ##??## """ ## ##? | | # ## #???# #??#### ##????# """ ## | | ## #?### #???### #?????# """ # | | ## ### #??## ### ##?????# | | # ### #??# #?####??????# ### ## | | ####?##### ### %!##??????????# ####??###??? | +----------------------------------------------------+ Best States ------------- Heat Dissipation 25 Energy Generation 14 Energy Capacity 250 Matter Stores 300 Matter Capacity 300 Sight Range 16 Terrain Scan Density 10 Armor Coverage 150 Evasion (%) 55 Recoil Reduction 2 Item Schematics ----------------- None Robot Schematics ------------------ None Fabricated ------------ Nothing Alien Tech Used ----------------- None Achievements -------------- None Challenges ------------ None Game ------ Seed BlastScanJammer Manual? 0 Play Time 00:29:17 Cumulative 71.6 hours Start 2024.04.27 @ 18:13:35 End 2024.04.27 @ 19:04:38 Sessions 1 Manual Loads 0 Difficulty Rogue Special Mode None Game No. 78 Rogue 78 Adventurer 0 Explorer 0 Win Type - Total 0 Types 0/0/0/0/0/0/0/0/0 Lore% 36 Gallery% 51 Achievement% 37 Wizard Run 0 Options --------- Layout 0 ASCII 0 Keyboard 0 Movement Mouse Keybinds 0 Fullscreen 2 Font 24/Smallcaps Map View 183x50 Zoom Use 0% Tactical HUD 1 Map Filters NONE Filters NONE Steam 0 RUN: 00668673-6761-4ad5-b794-9b4ec91105dc